[Event "White Rook U14 Final 2019"]
[Site "Sochi"]
[Date "2019.06.06"]
[Round "3.18"]
[White "Ivanov, Matvei"]
[Black "Zhukov, Maksim"]
[Result "0-1"]
[ECO "B13"]
[WhiteElo "1529"]
[BlackElo "1986"]
[Annotator "NA RC"]
[PlyCount "70"]
[EventDate "2019.06.02"]
[EventCountry "RUS"]
[SourceTitle "playchess.com"]
[Source "ChessBase"]
[SourceQuality "1"]
[TimeControl "5400+30"]

1. e4 {[%emt 0:00:00]} c6 {[%emt 0:00:00]} 2. d4 {[%emt 0:00:00]} d5 {[%emt 0:00:00]} 3. exd5 {[%emt 0:00:00]} cxd5 {[%emt 0:00:00]} 4. Bd3 {[%emt 0:00:00]} Nc6 {[%emt 0:00:00]} 5. c3 {[%emt 0:00:00]} g6 {[%emt 0:00:19]} 6. Bf4 {[%emt 0:00:00]} Nf6 {[%emt 0:00:33]} 7. Nf3 {[%emt 0:00:06]} Bf5 {[%emt 0:01:07]} 8. Bxf5 {[%emt 0:03:47]} gxf5 {[%emt 0:00:07]} 9. Ne5 {[%emt 0:00:12]} e6 {[%emt 0:03:33]} 10. Nd2 {[%emt 0:01:17]} Rg8 {[%emt 0:01:44]} 11. O-O {[%emt 0:00:32]} Be7 {[%emt 0:01:32]} 12. Qe2 {[%emt 0:06:38]} Qb6 {[%emt 0:07:22]} 13. Rab1 {[%emt 0:05:11]} Nxe5 {[%emt 0:08:51]} 14. Bxe5 {[%emt 0:03:17]} Ng4 {[%emt 0:02:17]} 15. h3 {[%emt 0:01:58]} Nxe5 {[%emt 0:02:46]} 16. Qxe5 {[%emt 0:01:25]} Bd6 {[%emt 0:00:15]} 17. Qe2 {[%emt 0:00:56]} O-O-O {[%emt 0:02:47]} 18. a4 {[%emt 0:00:51]} Rg6 {[%emt 0:03:18]} 19. f4 {[%emt 0:01:34]} Rdg8 {[%emt 0:05:06]} 20. Rf2 {[%emt 0:03:35]} Rg3 {[%emt 0:00:58]} 21. Kh1 {[%emt 0:01:01]} a6 {[%emt 0:04:04]} 22. Rf3 {[%emt 0:02:10]} Rxg2 {[%emt 0:01:49]} 23. Qxg2 {[%emt 0:04:41]} Rxg2 {[%emt 0:03:03]} 24. Kxg2 {[%emt 0:00:23]} Qa5 {[%emt 0:00:06]} 25. Ra1 {[%emt 0:00:01]} Qd8 {[%emt 0:03:30]} 26. b4 {[%emt 0:04:40]} h5 {[%emt 0:06:39]} 27. Nb3 {[%emt 0:04:27]} h4 {[%emt 0:07:59]} 28. Nc5 {[%emt 0:11:32]} Bxf4 {[%emt 0:00:06]} 29. Nd3 {[%emt 0:02:36]} Bc7 {[%emt 0:01:50]} 30. Kf2 {[%emt 0:02:23]} Qg5 {[%emt 0:02:02]} 31. Ke2 {[%emt 0:05:16]} Qg2+ {[%emt 0:00:26]} 32. Nf2 {[%emt 0:01:20]} Bg3 {[%emt 0:00:15]} 33. Rf1 {[%emt 0:00:03]} f6 {[%emt 0:00:25]} 34. Re3 {[%emt 0:00:20]} e5 {[%emt 0:00:41]} 35. dxe5 {[%emt 0:00:03]} fxe5 {[%emt 0:00:18]} 0-1

[Event "White Rook U14 Final 2019"]
[Site "Sochi"]
[Date "2019.06.06"]
[Round "3.19"]
[White "Ermolaev, Ivan"]
[Black "Valiev, Ravil"]
[Result "1-0"]
[ECO "C06"]
[WhiteElo "1776"]
[BlackElo "1458"]
[Annotator "NA RC"]
[PlyCount "49"]
[EventDate "2019.06.02"]
[EventCountry "RUS"]
[SourceTitle "playchess.com"]
[Source "ChessBase"]
[SourceQuality "1"]
[TimeControl "5400+30"]

1. e4 {[%emt 0:00:00]} e6 {[%emt 0:00:00]} 2. d4 {[%emt 0:00:00]} d5 {[%emt 0:00:00]} 3. Nd2 {[%emt 0:00:00]} Nf6 {[%emt 0:00:00]} 4. e5 {[%emt 0:00:00]} Nfd7 {[%emt 0:00:00]} 5. Bd3 {[%emt 0:00:00]} c5 {[%emt 0:00:00]} 6. c3 {[%emt 0:00:00]} Nc6 {[%emt 0:00:00]} 7. Ne2 {[%emt 0:01:00]} cxd4 {[%emt 0:00:08]} 8. cxd4 {[%emt 0:00:05]} Qb6 {[%emt 0:00:12]} 9. Nf3 {[%emt 0:00:06]} f6 {[%emt 0:01:05]} 10. exf6 {[%emt 0:01:19]} Nxf6 {[%emt 0:00:00]} 11. O-O {[%emt 0:01:41]} Bd6 {[%emt 0:00:00]} 12. b3 {[%emt 0:11:45]} O-O {[%emt 0:05:06]} 13. Bb2 {[%emt 0:03:59]} Bd7 {[%emt 0:05:00]} 14. Rc1 {[%emt 0:01:27]} Rfc8 {[%emt 0:03:08]} 15. Ne5 {[%emt 0:01:44]} Qd8 {[%emt 0:02:32]} 16. Ng3 {[%emt 0:02:42]} Rab8 {[%emt 0:00:42]} 17. Bb1 {[%emt 0:00:30]} b5 {[%emt 0:09:36]} 18. Qd3 {[%emt 0:02:00]} Nb4 {[%emt 0:05:37]} 19. Qe3 {[%emt 0:00:27]} Be8 {[%emt 0:17:48]} 20. a3 {[%emt 0:02:09]} Nc6 {[%emt 0:15:48]} 21. Nxc6 {[%emt 0:05:02]} Bxc6 {[%emt 0:00:48]} 22. Qxe6+ {[%emt 0:00:25]} Kh8 {[%emt 0:03:56]} 23. Nf5 {[%emt 0:00:10]} Ne8 {[%emt 0:11:20]} 24. Rfe1 {[%emt 0:01:38]} Rb7 {[%emt 0:05:24]} 25. Rxc6 {[%emt 0:05:51]} 1-0

[Event "White Rook U14 Final 2019"]
[Site "Sochi"]
[Date "2019.06.06"]
[Round "3.20"]
[White "Magizova, Yana"]
[Black "Kuzmina, Varvara"]
[Result "1/2-1/2"]
[ECO "B24"]
[WhiteElo "1585"]
[BlackElo "1190"]
[Annotator "NA RC"]
[PlyCount "149"]
[EventDate "2019.06.02"]
[EventCountry "RUS"]
[SourceTitle "playchess.com"]
[Source "ChessBase"]
[SourceQuality "1"]
[TimeControl "5400+30"]

1. e4 {[%emt 0:00:00]} c5 {[%emt 0:00:00]} 2. Nc3 {[%emt 0:00:00]} g6 {[%emt 0:00:00]} 3. d3 {[%emt 0:00:00]} Bg7 {[%emt 0:00:00]} 4. g3 {[%emt 0:00:11]} Nc6 {[%emt 0:00:41]} 5. Bg2 {[%emt 0:00:23]} e6 {[%emt 0:00:18]} 6. Nge2 {[%emt 0:00:37]} Nge7 {[%emt 0:00:00]} 7. Be3 {[%emt 0:02:32]} b6 {[%emt 0:00:21]} 8. Bf4 {[%emt 0:01:30]} d6 {[%emt 0:01:42]} 9. Qc1 {[%emt 0:01:19]} O-O {[%emt 0:00:05]} 10. Bh6 {[%emt 0:01:16]} d5 {[%emt 0:00:21]} 11. Bxg7 {[%emt 0:03:10]} Kxg7 {[%emt 0:00:43]} 12. h4 {[%emt 0:01:23]} h5 {[%emt 0:02:01]} 13. Qg5 {[%emt 0:01:55]} d4 {[%emt 0:01:13]} 14. Nb5 {[%emt 0:03:14]} e5 {[%emt 0:01:19]} 15. Bh3 {[%emt 0:02:46]} Ng8 {[%emt 0:01:15]} 16. Qxd8 {[%emt 0:04:45]} Rxd8 {[%emt 0:00:19]} 17. Nc7 {[%emt 0:00:56]} Rb8 {[%emt 0:00:18]} 18. Bxc8 {[%emt 0:01:03]} Rbxc8 {[%emt 0:02:14]} 19. Nd5 {[%emt 0:00:00]} f5 {[%emt 0:00:12]} 20. f3 {[%emt 0:01:16]} b5 {[%emt 0:01:00]} 21. Kd2 {[%emt 0:01:31]} c4 {[%emt 0:00:00]} 22. Rac1 {[%emt 0:01:46]} Nge7 {[%emt 0:01:14]} 23. Nxe7 {[%emt 0:00:24]} Nxe7 {[%emt 0:00:07]} 24. Rhg1 {[%emt 0:02:35]} Rc7 {[%emt 0:05:45]} 25. a3 {[%emt 0:03:52]} a5 {[%emt 0:00:32]} 26. Rge1 {[%emt 0:06:05]} b4 {[%emt 0:01:33]} 27. axb4 {[%emt 0:05:09]} axb4 {[%emt 0:02:58]} 28. dxc4 {[%emt 0:00:34]} Rxc4 {[%emt 0:01:06]} 29. b3 {[%emt 0:02:50]} Rc7 {[%emt 0:00:19]} 30. Ra1 {[%emt 0:01:03]} Rcd7 {[%emt 0:00:15]} 31. Kd3 {[%emt 0:00:17]} Rf8 {[%emt 0:01:07]} 32. Ra5 {[%emt 0:00:27]} Nc6 {[%emt 0:04:39]} 33. Rc5 {[%emt 0:02:55]} Rc7 {[%emt 0:01:14]} 34. Ng1 {[%emt 0:05:18]} f4 {[%emt 0:00:34]} 35. Nh3 {[%emt 0:01:36]} fxg3 {[%emt 0:02:23]} 36. Ng5 {[%emt 0:03:14]} Re8 {[%emt 0:04:21]} 37. Rg1 {[%emt 0:00:25]} Rcc8 {[%emt 0:00:20]} 38. Rxg3 {[%emt 0:01:20]} Na7 {[%emt 0:01:13]} 39. Ra5 {[%emt 0:02:12]} Rc3+ {[%emt 0:00:31]} 40. Kd2 {[%emt 0:03:26]} Nc6 {[%emt 0:00:17]} 41. Rb5 {[%emt 0:00:27]} Re7 {[%emt 0:02:02]} 42. Rg1 {[%emt 0:01:31]} Nd8 {[%emt 0:01:20]} 43. Rb6 {[%emt 0:01:53]} Rec7 {[%emt 0:01:54]} 44. Rc1 {[%emt 0:08:56]} R3c6 {[%emt 0:02:26]} 45. Rxb4 {[%emt 0:01:00]} Nf7 {[%emt 0:06:54]} 46. Nxf7 {[%emt 0:02:14]} Rxf7 {[%emt 0:01:03]} 47. Rf1 {[%emt 0:02:09]} Rc3 {[%emt 0:00:00]} 48. Rb5 {[%emt 0:00:34]} Rfc7 {[%emt 0:00:34]} 49. Rxe5 {[%emt 0:04:29]} Rxc2+ {[%emt 0:06:04]} 50. Kd3 {[%emt 0:03:45]} R2c3+ {[%emt 0:00:13]} 51. Kxd4 {[%emt 0:00:59]} Rxb3 {[%emt 0:00:00]} 52. Rd5 {[%emt 0:00:00]} Rf7 {[%emt 0:00:07]} 53. f4 {[%emt 0:00:42]} Rh3 {[%emt 0:01:00]} 54. f5 {[%emt 0:00:08]} Rxh4 {[%emt 0:00:00]} 55. Rg1 {[%emt 0:01:24]} Rg4 {[%emt 0:02:22]} 56. fxg6 {[%emt 0:00:00]} Kxg6 {[%emt 0:02:59]} 57. Rd6+ {[%emt 0:00:02]} Rf6 {[%emt 0:01:02]} 58. Rxf6+ {[%emt 0:03:14]} Kxf6 {[%emt 0:00:49]} 59. Rf1+ {[%emt 0:02:45]} Ke6 {[%emt 0:00:02]} 60. Ra1 {[%emt 0:00:58]} Rg6 {[%emt 0:00:12]} 61. Ra6+ {[%emt 0:00:32]} Kf7 {[%emt 0:01:52]} 62. Ra7+ {[%emt 0:00:23]} Ke6 {[%emt 0:00:00]} 63. Rh7 {[%emt 0:00:19]} Rg5 {[%emt 0:00:13]} 64. Rh6+ {[%emt 0:00:21]} Kf7 {[%emt 0:00:40]} 65. e5 {[%emt 0:00:09]} Kg7 {[%emt 0:01:00]} 66. Ra6 {[%emt 0:00:00]} h4 {[%emt 0:00:18]} 67. Ra7+ {[%emt 0:00:47]} Kg8 {[%emt 0:00:08]} 68. e6 {[%emt 0:00:18]} Kf8 {[%emt 0:00:52]} 69. Rh7 {[%emt 0:00:15]} h3 {[%emt 0:00:37]} 70. Rxh3 {[%emt 0:00:58]} Ke7 {[%emt 0:00:43]} 71. Re3 {[%emt 0:00:27]} Rg6 {[%emt 0:00:39]} 72. Kd5 {[%emt 0:00:35]} Rg5+ {[%emt 0:00:13]} 73. Re5 {[%emt 0:00:13]} Rxe5+ {[%emt 0:00:09]} 74. Kxe5 {[%emt 0:00:21]} Ke8 {[%emt 0:00:00]} 75. Ke4 {[%emt 0:00:00]} 1/2-1/2

[Event "White Rook U14 Final 2019"]
[Site "Sochi"]
[Date "2019.06.06"]
[Round "3.21"]
[White "Mongush, Kezhik"]
[Black "Voloshkin, Daniil"]
[Result "1/2-1/2"]
[ECO "E18"]
[WhiteElo "1824"]
[BlackElo "1557"]
[Annotator "NA RC"]
[PlyCount "112"]
[EventDate "2019.06.02"]
[EventCountry "RUS"]
[SourceTitle "playchess.com"]
[Source "ChessBase"]
[SourceQuality "1"]
[TimeControl "5400+30"]

1. d4 {[%emt 0:00:00]} Nf6 {[%emt 0:00:00]} 2. c4 {[%emt 0:00:00]} e6 {[%emt 0:00:00]} 3. Nf3 {[%emt 0:00:00]} b6 {[%emt 0:00:47]} 4. g3 {[%emt 0:00:00]} Bb7 {[%emt 0:00:05]} 5. Bg2 {[%emt 0:00:00]} Be7 {[%emt 0:01:21]} 6. O-O {[%emt 0:00:02]} O-O {[%emt 0:00:09]} 7. Nc3 {[%emt 0:00:04]} d5 {[%emt 0:00:16]} 8. Nd2 {[%emt 0:11:23]} c5 {[%emt 0:22:54]} 9. dxc5 {[%emt 0:01:22]} Bxc5 {[%emt 0:00:00]} 10. cxd5 {[%emt 0:02:24]} Nxd5 {[%emt 0:00:20]} 11. Nxd5 {[%emt 0:00:30]} Bxd5 {[%emt 0:00:15]} 12. Ne4 {[%emt 0:00:05]} Be7 {[%emt 0:00:13]} 13. Qa4 {[%emt 0:00:05]} Qd7 {[%emt 0:04:31]} 14. Qxd7 {[%emt 0:03:14]} Nxd7 {[%emt 0:09:46]} 15. Rd1 {[%emt 0:00:10]} Rfd8 {[%emt 0:00:01]} 16. Bf4 {[%emt 0:00:11]} Rac8 {[%emt 0:00:11]} 17. Nd6 {[%emt 0:00:16]} Bxd6 {[%emt 0:01:02]} 18. Bxd6 {[%emt 0:18:53]} Nf8 {[%emt 0:32:02]} 19. Be7 {[%emt 0:00:51]} Rd7 {[%emt 0:00:38]} 20. Bxf8 {[%emt 0:03:32]} Kxf8 {[%emt 0:00:07]} 21. Bxd5 {[%emt 0:00:43]} Rxd5 {[%emt 0:00:07]} 22. Kf1 {[%emt 0:00:20]} Rc2 {[%emt 0:09:48]} 23. Rxd5 {[%emt 0:00:25]} exd5 {[%emt 0:01:25]} 24. Rb1 {[%emt 0:00:06]} Ke7 {[%emt 0:00:03]} 25. Ke1 {[%emt 0:00:05]} Kd6 {[%emt 0:00:16]} 26. Kd1 {[%emt 0:04:08]} Rc4 {[%emt 0:01:45]} 27. b3 {[%emt 0:00:04]} Rc5 {[%emt 0:02:11]} 28. Kd2 {[%emt 0:02:56]} d4 {[%emt 0:01:13]} 29. b4 {[%emt 0:00:06]} Rc4 {[%emt 0:01:21]} 30. Rb3 {[%emt 0:01:37]} Kc6 {[%emt 0:01:00]} 31. Kd3 {[%emt 0:00:29]} b5 {[%emt 0:05:27]} 32. Kd2 {[%emt 0:00:48]} Kb6 {[%emt 0:00:51]} 33. Kd3 {[%emt 0:00:17]} f5 {[%emt 0:00:44]} 34. Kd2 {[%emt 0:01:51]} g5 {[%emt 0:00:57]} 35. Kd3 {[%emt 0:08:16]} g4 {[%emt 0:00:47]} 36. Rb2 {[%emt 0:02:32]} a5 {[%emt 0:00:13]} 37. bxa5+ {[%emt 0:00:18]} Kxa5 {[%emt 0:01:05]} 38. e3 {[%emt 0:00:05]} dxe3 {[%emt 0:00:04]} 39. fxe3 {[%emt 0:01:04]} Rc7 {[%emt 0:00:14]} 40. Kd4 {[%emt 0:00:04]} Re7 {[%emt 0:02:09]} 41. Rf2 {[%emt 0:00:42]} Re4+ {[%emt 0:00:55]} 42. Kd3 {[%emt 0:00:09]} Re5 {[%emt 0:00:06]} 43. Rf4 {[%emt 0:00:06]} Rd5+ {[%emt 0:00:19]} 44. Rd4 {[%emt 0:03:05]} Rxd4+ {[%emt 0:00:54]} 45. Kxd4 {[%emt 0:00:09]} Kb4 {[%emt 0:02:16]} 46. Kd5 {[%emt 0:02:05]} h6 {[%emt 0:00:06]} 47. Kd4 {[%emt 0:00:10]} Ka3 {[%emt 0:01:19]} 48. Kc5 {[%emt 0:00:19]} Kxa2 {[%emt 0:00:22]} 49. Kxb5 {[%emt 0:00:04]} Kb3 {[%emt 0:00:19]} 50. Kc5 {[%emt 0:01:31]} Kc3 {[%emt 0:00:30]} 51. Kd5 {[%emt 0:00:30]} Kd3 {[%emt 0:00:30]} 52. Ke5 {[%emt 0:00:30]} Kxe3 {[%emt 0:00:30]} 53. Kxf5 {[%emt 0:00:30]} Kf3 {[%emt 0:00:30]} 54. Kg6 {[%emt 0:00:30]} Kg2 {[%emt 0:00:30]} 55. Kxh6 {[%emt 0:00:30]} Kxh2 {[%emt 0:00:00]} 56. Kg5 {[%emt 0:00:30]} Kxg3 {[%emt 0:01:00]} 1/2-1/2

[Event "White Rook U14 Final 2019"]
[Site "Sochi"]
[Date "2019.06.06"]
[Round "3.22"]
[White "Vorzhevitin, Dmitriy"]
[Black "Fomkin, Dmitry"]
[Result "0-1"]
[ECO "B24"]
[WhiteElo "1346"]
[BlackElo "1733"]
[Annotator "NA RC"]
[PlyCount "118"]
[EventDate "2019.06.02"]
[EventCountry "RUS"]
[SourceTitle "playchess.com"]
[Source "ChessBase"]
[SourceQuality "1"]
[TimeControl "5400+30"]

1. e4 {[%emt 0:00:00]} c5 {[%emt 0:00:00]} 2. Nc3 {[%emt 0:00:00]} d6 {[%emt 0:00:00]} 3. g3 {[%emt 0:00:19]} Nc6 {[%emt 0:00:00]} 4. Bg2 {[%emt 0:00:00]} e5 {[%emt 0:00:00]} 5. Nge2 {[%emt 0:00:35]} g6 {[%emt 0:00:00]} 6. O-O {[%emt 0:00:19]} Bg7 {[%emt 0:00:02]} 7. d3 {[%emt 0:00:47]} Be6 {[%emt 0:00:07]} 8. Be3 {[%emt 0:07:48]} Nge7 {[%emt 0:00:36]} 9. f4 {[%emt 0:04:22]} O-O {[%emt 0:00:00]} 10. Qd2 {[%emt 0:10:32]} f5 {[%emt 0:00:15]} 11. fxe5 {[%emt 0:04:25]} Nxe5 {[%emt 0:00:14]} 12. Nf4 {[%emt 0:00:14]} Bf7 {[%emt 0:00:04]} 13. Rae1 {[%emt 0:09:09]} Rb8 {[%emt 0:01:09]} 14. Kh1 {[%emt 0:02:17]} Qd7 {[%emt 0:00:48]} 15. h3 {[%emt 0:00:40]} b5 {[%emt 0:00:01]} 16. b3 {[%emt 0:00:56]} b4 {[%emt 0:00:31]} 17. Nd1 {[%emt 0:06:33]} a5 {[%emt 0:00:18]} 18. d4 {[%emt 0:03:57]} cxd4 {[%emt 0:00:27]} 19. Bxd4 {[%emt 0:02:44]} fxe4 {[%emt 0:01:25]} 20. Rxe4 {[%emt 0:02:49]} Nf5 {[%emt 0:00:23]} 21. Bf2 {[%emt 0:00:15]} d5 {[%emt 0:03:00]} 22. Re2 {[%emt 0:04:05]} Rbd8 {[%emt 0:00:08]} 23. g4 {[%emt 0:02:02]} Ne7 {[%emt 0:00:38]} 24. Bd4 {[%emt 0:01:43]} N7c6 {[%emt 0:02:19]} 25. Bb2 {[%emt 0:01:29]} Rfe8 {[%emt 0:00:21]} 26. Rfe1 {[%emt 0:00:11]} d4 {[%emt 0:00:21]} 27. Nf2 {[%emt 0:00:29]} d3 {[%emt 0:01:49]} 28. N2xd3 {[%emt 0:03:43]} Nxd3 {[%emt 0:01:46]} 29. Rxe8+ {[%emt 0:01:34]} Rxe8 {[%emt 0:01:30]} 30. Rxe8+ {[%emt 0:05:21]} Bxe8 {[%emt 0:00:26]} 31. Bd5+ {[%emt 0:04:35]} Bf7 {[%emt 0:00:21]} 32. Bxf7+ {[%emt 0:04:28]} Kxf7 {[%emt 0:00:29]} 33. Qxd3 {[%emt 0:03:54]} Qxd3 {[%emt 0:05:59]} 34. Nxd3 {[%emt 0:00:20]} Bxb2 {[%emt 0:01:55]} 35. Nxb2 {[%emt 0:01:06]} Ke6 {[%emt 0:00:55]} 36. Kg2 {[%emt 0:00:04]} Kd5 {[%emt 0:00:03]} 37. Kf2 {[%emt 0:00:05]} Kd4 {[%emt 0:00:03]} 38. Nd1 {[%emt 0:00:10]} Ne5 {[%emt 0:00:06]} 39. Ke2 {[%emt 0:01:22]} g5 {[%emt 0:00:05]} 40. Kf2 {[%emt 0:01:47]} Ng6 {[%emt 0:00:05]} 41. Nb2 {[%emt 0:00:40]} Kc3 {[%emt 0:00:47]} 42. Nc4 {[%emt 0:00:48]} a4 {[%emt 0:00:16]} 43. Ne3 {[%emt 0:05:37]} a3 {[%emt 0:00:09]} 44. Nd5+ {[%emt 0:00:06]} Kxc2 {[%emt 0:01:01]} 45. Nxb4+ {[%emt 0:00:26]} Kc3 {[%emt 0:00:51]} 46. Nd5+ {[%emt 0:01:20]} Kb2 {[%emt 0:00:05]} 47. b4 {[%emt 0:00:03]} Kxa2 {[%emt 0:00:08]} 48. b5 {[%emt 0:00:13]} Kb3 {[%emt 0:00:05]} 49. b6 {[%emt 0:01:58]} Ne5 {[%emt 0:00:17]} 50. b7 {[%emt 0:00:00]} Nd7 {[%emt 0:00:56]} 51. Nf6 {[%emt 0:00:09]} Nb8 {[%emt 0:00:10]} 52. Nxh7 {[%emt 0:00:58]} a2 {[%emt 0:00:14]} 53. Nxg5 {[%emt 0:01:24]} a1=Q {[%emt 0:00:03]} 54. h4 {[%emt 0:00:05]} Qa7+ {[%emt 0:00:04]} 55. Kg3 {[%emt 0:00:07]} Qxb7 {[%emt 0:00:05]} 56. h5 {[%emt 0:00:15]} Nc6 {[%emt 0:00:11]} 57. h6 {[%emt 0:00:08]} Qc7+ {[%emt 0:00:08]} 58. Kh3 {[%emt 0:00:06]} Ne5 {[%emt 0:00:08]} 59. h7 {[%emt 0:00:06]} Ng6 {[%emt 0:00:12]} 0-1

[Event "White Rook U14 Final 2019"]
[Site "Sochi"]
[Date "2019.06.06"]
[Round "3.23"]
[White "Ponomarev, Andrey A."]
[Black "Zenkov, Maksim"]
[Result "1-0"]
[ECO "C07"]
[WhiteElo "1919"]
[BlackElo "1394"]
[Annotator "NA RC"]
[PlyCount "83"]
[EventDate "2019.06.02"]
[EventCountry "RUS"]
[SourceTitle "playchess.com"]
[Source "ChessBase"]
[SourceQuality "1"]
[TimeControl "5400+30"]

1. e4 {[%emt 0:00:00]} e6 {[%emt 0:00:00]} 2. d4 {[%emt 0:00:00]} d5 {[%emt 0:00:00]} 3. Nd2 {[%emt 0:00:00]} c5 {[%emt 0:00:00]} 4. exd5 {[%emt 0:00:00]} Qxd5 {[%emt 0:00:00]} 5. Ngf3 {[%emt 0:00:00]} cxd4 {[%emt 0:00:00]} 6. Bc4 {[%emt 0:00:00]} Qd6 {[%emt 0:00:10]} 7. O-O {[%emt 0:00:09]} Nf6 {[%emt 0:00:00]} 8. Nb3 {[%emt 0:00:18]} Nc6 {[%emt 0:00:00]} 9. Nbxd4 {[%emt 0:00:15]} Nxd4 {[%emt 0:00:00]} 10. Nxd4 {[%emt 0:00:17]} a6 {[%emt 0:00:00]} 11. h3 {[%emt 0:02:56]} Qc7 {[%emt 0:03:56]} 12. Qe2 {[%emt 0:01:43]} Bd6 {[%emt 0:01:45]} 13. Bg5 {[%emt 0:02:34]} O-O {[%emt 0:00:48]} 14. Bd3 {[%emt 0:00:55]} Be5 {[%emt 0:04:31]} 15. c3 {[%emt 0:00:49]} h6 {[%emt 0:01:52]} 16. Bh4 {[%emt 0:01:08]} Rb8 {[%emt 0:05:49]} 17. Rae1 {[%emt 0:02:06]} Bd6 {[%emt 0:12:16]} 18. Qf3 {[%emt 0:01:21]} Nd5 {[%emt 0:02:42]} 19. Qe4 {[%emt 0:09:40]} g6 {[%emt 0:03:03]} 20. Bc2 {[%emt 0:07:33]} b5 {[%emt 0:03:56]} 21. Bb3 {[%emt 0:14:52]} Bb7 {[%emt 0:01:42]} 22. Nxe6 {[%emt 0:00:47]} Nf4 {[%emt 0:17:44]} 23. Nxc7 {[%emt 0:01:09]} Bxe4 {[%emt 0:00:07]} 24. Rxe4 {[%emt 0:00:00]} Bxc7 {[%emt 0:00:17]} 25. Bg3 {[%emt 0:00:00]} g5 {[%emt 0:00:30]} 26. Bxf4 {[%emt 0:06:53]} Bxf4 {[%emt 0:00:35]} 27. g3 {[%emt 0:00:08]} Bc7 {[%emt 0:05:20]} 28. Re7 {[%emt 0:01:06]} Bd6 {[%emt 0:00:44]} 29. Rd7 {[%emt 0:00:00]} Rbd8 {[%emt 0:01:09]} 30. Bxf7+ {[%emt 0:00:00]} Kg7 {[%emt 0:03:16]} 31. Be6+ {[%emt 0:01:29]} Rxd7 {[%emt 0:02:22]} 32. Bxd7 {[%emt 0:00:22]} Bc5 {[%emt 0:04:53]} 33. Bg4 {[%emt 0:00:44]} Rd8 {[%emt 0:06:51]} 34. Rd1 {[%emt 0:00:00]} Rxd1+ {[%emt 0:00:20]} 35. Bxd1 {[%emt 0:00:34]} a5 {[%emt 0:00:28]} 36. a3 {[%emt 0:02:39]} Kf6 {[%emt 0:05:41]} 37. Kf1 {[%emt 0:00:19]} Ke5 {[%emt 0:01:09]} 38. Ke2 {[%emt 0:00:25]} Ke4 {[%emt 0:06:07]} 39. Bc2+ {[%emt 0:02:22]} Ke5 {[%emt 0:00:04]} 40. b4 {[%emt 0:00:15]} axb4 {[%emt 0:02:24]} 41. axb4 {[%emt 0:00:00]} Bb6 {[%emt 0:02:42]} 42. Bd3 {[%emt 0:00:32]} 1-0

[Event "White Rook U14 Final 2019"]
[Site "Sochi"]
[Date "2019.06.06"]
[Round "3.24"]
[White "Golikova, Alisa"]
[Black "Namay, Viktoria"]
[Result "1-0"]
[ECO "B15"]
[WhiteElo "1252"]
[BlackElo "1359"]
[Annotator "NA RC"]
[PlyCount "69"]
[EventDate "2019.06.02"]
[EventCountry "RUS"]
[SourceTitle "playchess.com"]
[Source "ChessBase"]
[SourceQuality "1"]
[TimeControl "5400+30"]

1. e4 {[%emt 0:00:00]} c6 {[%emt 0:00:00]} 2. Nc3 {[%emt 0:00:00]} d5 {[%emt 0:00:00]} 3. Nf3 {[%emt 0:00:00]} dxe4 {[%emt 0:00:00]} 4. Nxe4 {[%emt 0:00:00]} Nf6 {[%emt 0:00:00]} 5. Nxf6+ {[%emt 0:01:05]} exf6 {[%emt 0:00:29]} 6. d4 {[%emt 0:04:50]} Bd6 {[%emt 0:01:43]} 7. Bd3 {[%emt 0:01:52]} Nd7 {[%emt 0:00:18]} 8. O-O {[%emt 0:01:41]} O-O {[%emt 0:00:43]} 9. Re1 {[%emt 0:08:01]} Re8 {[%emt 0:05:10]} 10. Bd2 {[%emt 0:03:12]} Nf8 {[%emt 0:00:49]} 11. Nh4 {[%emt 0:08:10]} Be6 {[%emt 0:03:32]} 12. Nf5 {[%emt 0:03:21]} Bc7 {[%emt 0:01:40]} 13. Qg4 {[%emt 0:01:36]} Ng6 {[%emt 0:00:31]} 14. h4 {[%emt 0:23:11]} Bxf5 {[%emt 0:10:02]} 15. Bxf5 {[%emt 0:04:38]} Ne5 {[%emt 0:07:26]} 16. Qf4 {[%emt 0:00:13]} Nc4 {[%emt 0:01:11]} 17. Rxe8+ {[%emt 0:07:35]} Qxe8 {[%emt 0:05:23]} 18. Qxc7 {[%emt 0:00:44]} Nxd2 {[%emt 0:00:19]} 19. b3 {[%emt 0:00:16]} Rd8 {[%emt 0:00:12]} 20. Qf4 {[%emt 0:07:32]} Rd5 {[%emt 0:17:09]} 21. Bd3 {[%emt 0:01:54]} Qd8 {[%emt 0:08:58]} 22. Qxd2 {[%emt 0:02:29]} Rxd4 {[%emt 0:15:27]} 23. Rd1 {[%emt 0:00:55]} g6 {[%emt 0:00:17]} 24. h5 {[%emt 0:00:15]} Qd5 {[%emt 0:01:47]} 25. hxg6 {[%emt 0:02:28]} hxg6 {[%emt 0:02:59]} 26. Qe2 {[%emt 0:00:40]} Kg7 {[%emt 0:00:16]} 27. c3 {[%emt 0:02:06]} Rh4 {[%emt 0:02:33]} 28. Bc4 {[%emt 0:00:57]} Qg5 {[%emt 0:01:03]} 29. Qf3 {[%emt 0:09:27]} Rh8 {[%emt 0:07:13]} 30. Rd7 {[%emt 0:02:08]} Rf8 {[%emt 0:01:03]} 31. Qe3 {[%emt 0:01:11]} Qg4 {[%emt 0:02:21]} 32. Qe7 {[%emt 0:00:31]} Qg5 {[%emt 0:00:52]} 33. g3 {[%emt 0:00:23]} Qe5 {[%emt 0:04:16]} 34. Qxe5 {[%emt 0:01:15]} fxe5 {[%emt 0:00:04]} 35. Rxb7 {[%emt 0:00:06]} 1-0